bitfinex/quotes_BTCUSD_20250331
["timestamp","ask_amount","ask_price","bid_price","bid_amount"]
[1743407817358,0.00030069,82005.0,82004.0,1.038444]
[1743407820949,0.00030069,82005.0,82004.0,1.02625]
[1743407821347,0.00030069,82005.0,82004.0,1.038444]
[1743407821711,0.01939913,82005.0,82004.0,0.78156]
[1743407821958,0.27548013,82005.0,82004.0,0.63548]
[1743407822156,0.27548013,82005.0,82004.0,0.7816]
[1743407822157,0.35438013,82005.0,82004.0,0.7816]
[1743407823034,0.27548013,82005.0,82004.0,0.7816]
[1743407823230,0.27548013,82005.0,82004.0,0.7806]
[1743407823231,0.01939913,82005.0,82004.0,0.7806]
[1743407823439,0.03159313,82005.0,82004.0,0.7806]
[1743407823759,0.03159313,82005.0,82004.0,0.7796]
[1743407823980,0.27548013,82005.0,82004.0,0.7796]
[1743407827074,0.27548013,82005.0,82004.0,0.63348]
[1743407827273,0.27548013,82005.0,82004.0,0.78012]
[1743407827274,0.57548013,82005.0,82004.0,0.78012]
[1743407828007,0.65698013,82005.0,82004.0,0.78012]
[1743407828716,0.69489627,82005.0,82004.0,0.78012]
[1743407828927,0.65698013,82005.0,82004.0,0.78012]
[1743407830721,0.63788169,82005.0,82004.0,0.78012]
[1743407830918,0.65698164,82005.0,82004.0,0.78016]
[1743407831840,0.69487024,82005.0,82004.0,0.78016]
[1743407832162,0.67712876,82005.0,82004.0,0.78016]
[1743407832540,0.71501249,82005.0,82004.0,0.78016]
[1743407834729,0.71501249,82005.0,82004.0,0.63348]
[1743407834922,0.71501249,82005.0,82004.0,0.77972]
[1743407835225,0.71501249,82005.0,82004.0,0.77968]
[1743407837492,0.69591254,82005.0,82004.0,0.77968]
[1743407840638,0.71501284,82005.0,82004.0,0.77968]
[1743407842572,0.71501284,82005.0,82004.0,0.77936]
[1743407842775,0.71501284,82005.0,82004.0,0.63348]
[1743407845777,0.556097,82000.0,81999.0,0.14588]
[1743407845948,0.57661592,82000.0,81999.0,0.14588]
[1743407846149,0.556122,81992.0,81991.0,0.63348]
[1743407846361,0.556122,81992.0,81991.0,0.77904]
[1743407846936,0.57522404,81992.0,81991.0,0.77904]
[1743407847359,0.556122,81992.0,81991.0,0.77904]
[1743407848286,0.56848451,81992.0,81991.0,0.78204]
[1743407848648,0.56848451,81992.0,81991.0,0.77904]
[1743407848855,0.56848451,81992.0,81991.0,0.78104]
[1743407849410,0.56848451,81992.0,81991.0,0.63948]
[1743407849601,0.77516963,81992.0,81991.0,0.006]
[1743407849807,0.70491297,81992.0,81991.0,0.006]
[1743407850042,0.70491297,81992.0,81991.0,0.002]
[1743407850477,0.256159,81980.0,81979.0,0.63352]
[1743407850679,0.65566551,81980.0,81979.0,0.63352]
[1743407851478,0.57816551,81980.0,81979.0,0.63352]
[1743407851617,0.59727161,81980.0,81979.0,0.63357748]
[1743407852135,0.59827161,81980.0,81979.0,0.63357748]
[1743407852660,0.59927161,81980.0,81979.0,0.63357748]
[1743407853396,0.59927161,81980.0,81979.0,0.77909748]
[1743407857455,0.58016551,81980.0,81979.0,0.77909748]
[1743407857652,0.558159,81980.0,81979.0,0.77909748]
[1743407857921,0.258159,81980.0,81979.0,0.77909748]
[1743407859889,0.58016551,81980.0,81979.0,0.63357748]
[1743407861736,0.59927145,81980.0,81979.0,0.63357748]
[1743407863337,0.59927145,81980.0,81979.0,5.748e-05]
[1743407867321,0.58016551,81980.0,81979.0,5.748e-05]
[1743407868638,0.70045034,81980.0,81979.0,5.748e-05]
[1743407868946,0.58016551,81980.0,81979.0,5.748e-05]
[1743407870442,0.59927045,81980.0,81979.0,5.748e-05]
[1743407877445,0.58016551,81980.0,81979.0,5.748e-05]
[1743407879540,0.558159,81980.0,81979.0,5.748e-05]
[1743407879954,0.002,81980.0,81979.0,5.748e-05]
[1743407880155,0.002,81980.0,81979.0,0.30221948]
[1743407880361,0.02110402,81980.0,81979.0,0.38091948]
[1743407880553,0.02110402,81980.0,81979.0,0.52651948]
[1743407880843,0.02110402,81980.0,81979.0,0.64680431]
[1743407881048,0.02010402,81980.0,81979.0,0.64680431]
[1743407881256,0.10795589,82003.0,81992.0,0.1247]
[1743407881457,0.10795589,82003.0,82002.0,0.243896]
[1743407881663,0.10795589,82003.0,82002.0,1.023256]
[1743407881871,0.10795589,82003.0,82002.0,1.03545]
[1743407883954,0.10795589,82003.0,82002.0,0.78036]
[1743407884356,0.10795589,82003.0,82002.0,0.78016]
[1743407884543,0.01910062,82004.0,82002.0,0.78116]
[1743407884742,0.012194,82003.0,82002.0,0.63568]
[1743407884915,0.012194,82003.0,82002.0,0.78116]
[1743407886305,0.03248984,82003.0,82002.0,0.78104]
[1743407886720,0.01910062,82004.0,82002.0,1.023934]
[1743407886922,0.01910062,82004.0,82002.0,0.78004]
[1743407887153,0.243893,82003.0,82002.0,0.78104]
[1743407887345,0.243893,82003.0,82002.0,0.78004]
[1743407887750,0.243893,82003.0,82002.0,0.63468]
[1743407887884,0.57638284,82003.0,82002.0,0.78196]
[1743407888089,0.57738284,82003.0,82002.0,0.78096]
[1743407888297,0.301,82003.0,82002.0,0.78096]
[1743407888515,0.302,82003.0,82002.0,0.78096]
[1743407889798,0.243891,82004.0,82002.0,0.78096]
[1743407890387,0.2751842,82004.0,82002.0,0.78096]
[1743407891924,0.012194,82003.0,82002.0,0.78096]
[1743407893969,0.2629902,82004.0,82002.0,0.78096]
[1743407894375,0.2751842,82004.0,82002.0,0.78096]
[1743407895742,0.243893,82003.0,82002.0,0.78096]
[1743407896281,0.0190992,82004.0,82002.0,0.78096]
[1743407896491,0.2629902,82004.0,82002.0,0.78096]
[1743407896716,0.0190992,82004.0,82003.0,0.012194]
[1743407896916,0.0190992,82004.0,82002.0,1.024855]
[1743407897120,0.0190992,82004.0,82003.0,0.243893]
[1743407897337,0.00030069,82005.0,82003.0,0.243893]
[1743407897534,0.00030069,82005.0,82002.0,1.024855]
[1743407897856,0.01249469,82005.0,82002.0,0.78096]
[1743407898213,0.25638169,82005.0,82002.0,1.024856]
[1743407898643,0.25638169,82005.0,82002.0,0.78096]
[1743407898795,0.243891,82004.0,82002.0,0.78096]
[1743407899435,0.24418969,82005.0,82002.0,1.024854]
[1743407899866,0.24418969,82005.0,82002.0,0.78096]
[1743407899867,0.243891,82004.0,82002.0,0.78096]
[1743407900100,0.243893,82003.0,82002.0,0.78096]
[1743407900479,0.27518409,82004.0,82002.0,0.78096]
[1743407901227,0.27518409,82004.0,82003.0,0.1474]
[1743407904114,0.01909909,82004.0,82003.0,0.1474]
[1743407904934,0.01909909,82004.0,82003.0,0.391293]
[1743407905174,0.01909909,82004.0,82003.0,0.1474]
[1743407905585,0.01909909,82004.0,82003.0,0.403487]
[1743407905721,0.01909909,82004.0,82003.0,0.391293]
[1743407905906,0.01909909,82004.0,82003.0,0.1474]
[1743407907310,0.24389,82004.0,82003.0,0.1474]
[1743407908554,0.00030069,82005.0,82003.0,0.39129]
[1743407908921,0.00030069,82005.0,82004.0,0.33792274]
[1743407909134,0.00030069,82005.0,82004.0,0.335484]
[1743407909332,0.00030069,82005.0,82004.0,0.50096883]
[1743407909689,0.00030069,82005.0,82004.0,0.5099331]
[1743407909690,6.9e-07,82005.0,82004.0,0.5099331]
[1743407911351,6.9e-07,82005.0,82004.0,0.5223943]
[1743407911710,0.002,82014.0,82013.0,0.380156]
[1743407911916,0.002,82014.0,82013.0,0.50044083]
[1743407912975,0.002,82014.0,82013.0,0.50944083]
[1743407914620,0.002,82014.0,82013.0,0.65904083]
[1743407916412,0.002,82014.0,82013.0,0.50944083]
[1743407916565,0.002,82014.0,82013.0,0.43054083]
[1743407916786,0.002,82014.0,82013.0,0.58002083]
[1743407917887,0.002,82014.0,82013.0,0.310256]
[1743407918092,0.002,82014.0,82013.0,0.414416]
[1743407919861,0.002,82014.0,82013.0,0.15836]
[1743407919862,0.24586,82014.0,82013.0,0.15836]
[1743407920290,0.258053,82014.0,82013.0,0.15836]
[1743407920456,0.02109551,82014.0,82013.0,0.15836]
[1743407920662,0.26495551,82014.0,82013.0,0.15336]
[1743407921010,0.243875,82011.0,82003.0,0.012194]
[1743407921285,0.243875,82011.0,82007.0,0.243879]
[1743407921286,0.243869,82011.0,82007.0,0.243879]
[1743407921502,0.243873,82010.0,82007.0,0.243879]
[1743407922675,0.243881,82007.0,82003.0,0.243892]
[1743407922876,0.243881,82008.0,82004.0,0.14904]
[1743407923075,0.243881,82008.0,82005.0,0.243887]
[1743407923299,0.243881,82008.0,82004.0,0.14904]
[1743407923300,0.243887,82005.0,82004.0,0.14904]
[1743407923593,0.256081,82005.0,82004.0,0.14904]
[1743407923976,0.256087,82003.0,82002.0,0.63368]
[1743407924182,0.256087,82003.0,82002.0,0.78252]
[1743407924760,0.275179,82005.0,82004.0,0.002]
[1743407924761,0.019098,82005.0,82004.0,0.002]
[1743407924931,0.019098,82005.0,82004.0,0.24589]
[1743407925391,0.019098,82005.0,82004.0,0.24389]
[1743407925936,0.019098,82005.0,82004.0,0.256084]
[1743407926320,0.019098,82005.0,82004.0,0.404644]
[1743407926834,0.019098,82005.0,82004.0,0.406644]
[1743407927413,0.24387,82011.0,82008.0,0.243878]
[1743407927633,0.256059,82012.0,82009.0,0.243875]
[1743407927830,0.3,82013.0,82008.0,0.243878]
[1743407928071,0.243867,82012.0,82008.0,0.243878]
[1743407928279,0.3,82013.0,82008.0,0.243878]
[1743407928280,0.543864,82013.0,82008.0,0.243878]
[1743407928483,0.543864,82013.0,82010.0,0.243872]
[1743407930249,0.002,82014.0,82013.0,0.012193]
[1743407930466,0.002,82014.0,82013.0,0.256056]
[1743407930637,0.02109613,82014.0,82013.0,0.256056]
[1743407934299,0.02109613,82014.0,82013.0,0.258056]
[1743407934500,0.02109613,82014.0,82013.0,0.259056]
[1743407937183,0.02109613,82014.0,82013.0,0.45984083]
[1743407937504,0.002,82014.0,82013.0,0.45984083]
[1743407939170,0.002,82014.0,82013.0,0.50434083]
[1743407939370,0.002,82014.0,82013.0,0.50334083]
[1743407939573,0.002,82014.0,82013.0,0.50834083]
[1743407939802,0.002,82014.0,82013.0,0.51234083]
[1743407940649,1e-06,82014.0,82013.0,0.53188168]
[1743407940856,1e-06,82014.0,82013.0,0.85688168]
[1743407942486,1e-06,82014.0,82013.0,0.85188168]
[1743407942709,1e-06,82014.0,82013.0,0.85388168]
[1743407942885,1e-06,82014.0,82013.0,0.85988168]
[1743407943188,1e-06,82014.0,82013.0,0.84788168]
[1743407943414,1e-06,82014.0,82013.0,0.85388168]
[1743407943585,1e-06,82014.0,82013.0,0.85988168]
[1743407944149,1e-06,82014.0,82013.0,0.84788168]
[1743407944604,1e-06,82014.0,82013.0,0.85988168]
[1743407945607,1e-06,82014.0,82013.0,0.85388168]
[1743407945952,1e-06,82014.0,82013.0,1.27918168]
[1743407952637,1e-06,82014.0,82013.0,1.91234168]
[1743407952859,1e-06,82014.0,82013.0,2.06238168]
[1743407957902,1e-06,82029.0,82028.0,0.556009]
[1743407958086,2.3e-07,82029.0,82028.0,1.10521468]
[1743407958285,2.3e-07,82029.0,82028.0,1.11021468]
[1743407958474,2.3e-07,82029.0,82028.0,1.11950223]
[1743407959101,2.3e-07,82029.0,82028.0,1.76462223]
[1743407959335,2.3e-07,82029.0,82028.0,1.75862223]
[1743407959484,2.3e-07,82029.0,82028.0,1.75262223]
[1743407959685,2.3e-07,82029.0,82028.0,1.75862223]
[1743407959892,2.3e-07,82029.0,82028.0,1.76462223]
[1743407969162,2.3e-07,82029.0,82028.0,2.18392223]
[1743407969960,2.3e-07,82044.0,82043.0,0.555962]
[1743407970168,4.8e-07,82044.0,82043.0,1.21376768]
[1743407970925,4.8e-07,82044.0,82043.0,1.20876768]
[1743407971298,4.8e-07,82044.0,82043.0,1.22076768]
[1743407971508,4.8e-07,82044.0,82043.0,1.2329504]
[1743407971727,4.8e-07,82044.0,82043.0,1.2269504]
[1743407972105,4.8e-07,82044.0,82043.0,1.2329504]
[1743407972308,4.8e-07,82044.0,82043.0,1.2379504]
[1743407972551,4.8e-07,82044.0,82043.0,1.2319504]
[1743407972705,4.8e-07,82044.0,82043.0,1.2379504]
[1743407974109,0.00389954,82059.0,82058.0,0.255916]
[1743407974292,0.00389954,82059.0,82058.0,1.15760083]
[1743407975532,0.00389954,82059.0,82058.0,1.16260083]
[1743407975861,0.00389954,82059.0,82058.0,1.16660083]
[1743407977535,0.00389954,82059.0,82058.0,1.01820083]
[1743407977701,0.00389954,82059.0,82058.0,1.16624083]
[1743407988327,0.00389954,82059.0,82058.0,1.16124083]
[1743407988656,0.00389954,82059.0,82058.0,1.16324083]
[1743407988863,0.00389954,82059.0,82058.0,1.16824083]
[1743407989826,5.4e-07,82059.0,82058.0,1.16824083]
[1743407990345,5.4e-07,82059.0,82058.0,1.46224083]
[1743407990492,5.4e-07,82059.0,82058.0,1.51704083]
[1743407990901,5.4e-07,82059.0,82058.0,1.51104083]
[1743407991342,5.4e-07,82059.0,82058.0,1.51704083]
[1743407991541,5.4e-07,82059.0,82058.0,1.51204083]
[1743407991844,5.4e-07,82059.0,82058.0,1.51804083]
[1743407996468,5.4e-07,82059.0,82058.0,1.53758168]
[1743407996735,5.4e-07,82059.0,82058.0,1.56258168]
[1743407996937,5.4e-07,82059.0,82058.0,1.64558168]
[1743407997090,5.4e-07,82074.0,82073.0,0.255869]
[1743407997290,0.00014171,82074.0,82073.0,1.00353383]
[1743407998924,0.00014171,82074.0,82073.0,1.01269688]
[1743407999460,0.00014171,82074.0,82073.0,1.02469688]
[1743408000415,0.00014171,82074.0,82073.0,0.61198483]
[1743408000649,0.09143095,82074.0,82073.0,0.38815383]
[1743408000859,0.07924171,82074.0,82073.0,0.38815383]
[1743408001278,0.09832419,82074.0,82073.0,0.38815383]
[1743408001558,0.07924171,82074.0,82073.0,0.38215383]
[1743408001971,0.07924171,82074.0,82073.0,0.38515383]
[1743408002146,0.07924171,82074.0,82073.0,0.37296983]
[1743408002311,0.07924171,82074.0,82073.0,0.38515383]
[1743408002520,0.07924171,82074.0,82073.0,0.37915383]
[1743408002760,0.07924171,82074.0,82073.0,0.38315383]
[1743408004968,0.33510771,82074.0,82073.0,0.007]
[1743408005172,0.07924171,82074.0,82073.0,0.12728483]
[1743408005377,0.07924171,82074.0,82073.0,0.007]
[1743408005610,0.33510771,82074.0,82073.0,0.007]
[1743408005968,0.33510771,82074.0,82073.0,0.003]
[1743408006172,0.07924171,82074.0,82071.0,0.24369]
[1743408006422,0.07924171,82074.0,82073.0,0.002]
[1743408006637,0.07924171,82074.0,82073.0,0.003]
[1743408006770,0.07924171,82074.0,82073.0,0.001]
[1743408007213,0.07924171,82074.0,82073.0,0.246685]
[1743408007425,0.07924171,82074.0,82073.0,0.37915383]
[1743408007630,0.00014171,82074.0,82073.0,0.37915383]
[1743408007851,0.00014171,82074.0,82073.0,0.37815383]
[1743408008103,0.00014171,82074.0,82073.0,0.37915383]
[1743408008868,7.1e-07,82074.0,82073.0,0.43794578]
[1743408009088,7.1e-07,82074.0,82073.0,0.44194578]
[1743408009263,7.1e-07,82074.0,82073.0,0.44494578]
[1743408009673,7.1e-07,82074.0,82073.0,0.43794578]
[1743408009889,7.1e-07,82074.0,82073.0,0.44394578]
[1743408010930,7.1e-07,82074.0,82073.0,0.44894578]
[1743408011171,7.1e-07,82074.0,82073.0,0.75394578]
[1743408011366,7.1e-07,82074.0,82073.0,0.89710578]
[1743408011570,7.1e-07,82074.0,82073.0,0.90310578]
[1743408011749,7.1e-07,82074.0,82073.0,0.89710578]
[1743408012112,0.045,82106.0,82073.0,0.89710578]
[1743408012113,2.4e-07,82104.0,82103.0,0.012179]
[1743408012284,2.4e-07,82104.0,82103.0,1.036815]
[1743408012485,0.00014138,82104.0,82103.0,1.15709983]
[1743408013963,0.00014138,82104.0,82103.0,1.16109983]
[1743408014379,0.00014138,82104.0,82103.0,1.17342439]
[1743408014806,3.8e-07,82104.0,82103.0,1.48796524]
[1743408014982,3.8e-07,82104.0,82103.0,1.58524353]
[1743408015458,3.8e-07,82104.0,82103.0,1.58124353]
[1743408015797,3.8e-07,82104.0,82103.0,1.58424353]
[1743408016049,3.8e-07,82104.0,82103.0,1.60924353]
[1743408016298,3.8e-07,82104.0,82103.0,1.53414353]
[1743408019312,3.8e-07,82104.0,82103.0,1.52814353]
[1743408019734,3.8e-07,82104.0,82103.0,1.53414353]
[1743408020545,3.8e-07,82104.0,82103.0,1.52914353]
[1743408020756,0.004,82119.0,82118.0,0.255728]
[1743408020757,3.8e-07,82119.0,82118.0,0.255728]
[1743408020962,0.00047076,82119.0,82118.0,0.52625283]
[1743408021165,7.6e-07,82119.0,82118.0,0.52625283]
[1743408021376,0.01906852,82131.0,82130.0,0.255691]
[1743408021377,2.8e-07,82131.0,82130.0,0.255691]
[1743408021589,0.00014131,82131.0,82130.0,0.37597583]
[1743408021797,0.00014103,82131.0,82130.0,0.37597583]
[1743408022586,0.00014103,82131.0,82130.0,0.37897583]
[1743408022789,0.00014103,82131.0,82130.0,0.38297583]
[1743408023555,0.00014103,82131.0,82130.0,0.39202995]
[1743408024907,0.00014103,82131.0,82130.0,1.02450995]
[1743408025997,0.00014103,82131.0,82130.0,1.02050995]
[1743408026398,0.00014103,82131.0,82130.0,1.02550995]
[1743408027789,0.00014103,82131.0,82130.0,1.01750995]
[1743408028014,0.00014103,82131.0,82130.0,1.17246995]
[1743408028223,0.00014103,82131.0,82130.0,1.17646995]
[1743408029197,0.00014103,82131.0,82130.0,1.02650995]
[1743408029402,0.04744103,82131.0,82130.0,1.05606512]
[1743408029654,0.12904103,82131.0,82130.0,1.05606512]
[1743408030714,0.12904103,82131.0,82130.0,1.05206512]
[1743408031142,0.12904103,82131.0,82130.0,1.17634995]
[1743408031353,0.08174103,82131.0,82130.0,1.16734995]
[1743408031688,0.08174103,82131.0,82130.0,1.17034995]
[1743408031889,0.08174103,82131.0,82130.0,1.17534995]
[1743408032090,0.08174103,82131.0,82130.0,1.17234995]
[1743408032313,0.08174103,82131.0,82130.0,1.17034995]
[1743408032697,0.08174103,82131.0,82130.0,1.17434995]
[1743408033094,0.00014103,82131.0,82130.0,1.17434995]
[1743408033715,0.08174103,82131.0,82130.0,0.79837412]
[1743408033916,0.08174103,82131.0,82130.0,0.78932]
[1743408034321,0.08174103,82131.0,82130.0,1.032836]
[1743408034518,0.08174103,82131.0,82130.0,0.78932]
[1743408034965,0.32525403,82131.0,82130.0,0.78932]
[1743408035825,0.32525403,82131.0,82130.0,0.78532]
[1743408036160,0.08174103,82131.0,82130.0,1.025836]
[1743408036592,0.08174103,82131.0,82130.0,1.041011]
[1743408036793,0.08174103,82131.0,82130.0,1.05025168]
[1743408037087,0.08174103,82131.0,82130.0,1.05325168]
[1743408037711,0.08174103,82131.0,82130.0,1.17353651]
[1743408038677,0.08161927,82131.0,82130.0,1.17353651]
[1743408039904,1.927e-05,82131.0,82130.0,1.17353651]
[1743408040178,1.927e-05,82131.0,82130.0,1.16429583]
[1743408040406,1.927e-05,82131.0,82130.0,1.17349773]
[1743408043708,1.927e-05,82131.0,82130.0,1.16429583]
[1743408048333,1.927e-05,82131.0,82130.0,1.01445583]
[1743408048532,1.927e-05,82131.0,82130.0,1.16377583]
[1743408050676,2.7e-07,82134.0,82133.0,0.601782]
[1743408050836,2.7e-07,82134.0,82133.0,0.73660768]
[1743408052291,2.7e-07,82134.0,82133.0,0.74260768]
[1743408052974,2.7e-07,82134.0,82133.0,0.68196683]
[1743408053178,2.7e-07,82134.0,82133.0,0.68796683]
[1743408057824,2.7e-07,82134.0,82133.0,0.70750768]
[1743408058026,2.7e-07,82149.0,82148.0,0.555636]
[1743408058248,2.7e-07,82149.0,82148.0,1.06444083]
[1743408058657,2.7e-07,82149.0,82148.0,1.14304083]
[1743408059423,2.7e-07,82149.0,82148.0,1.15235042]
[1743408059624,2.7e-07,82149.0,82148.0,1.07375042]
[1743408060248,2.7e-07,82149.0,82148.0,1.07975042]
[1743408060410,2.7e-07,82149.0,82148.0,1.09172729]
[1743408060615,2.7e-07,82149.0,82148.0,1.09772729]
[1743408064809,2.7e-07,82149.0,82148.0,1.09756729]
[1743408065038,2.7e-07,82149.0,82148.0,1.72976729]
[1743408068694,2.7e-07,82149.0,82148.0,1.28140729]
[1743408068884,2.7e-07,82149.0,82148.0,1.42968729]
[1743408069535,2.7e-07,82149.0,82148.0,1.42368729]
[1743408069888,2.7e-07,82149.0,82148.0,1.42968729]
[1743408070316,2.7e-07,82149.0,82148.0,1.42368729]
[1743408070523,2.7e-07,82149.0,82148.0,1.42968729]
[1743408071499,2.7e-07,82149.0,82148.0,1.42368729]
[1743408071722,2.7e-07,82149.0,82148.0,1.42968729]
[1743408075522,2.7e-07,82149.0,82148.0,1.74422814]
[1743408076496,2.7e-07,82149.0,82148.0,1.73222814]
[1743408076732,2.7e-07,82149.0,82148.0,1.71768729]
[1743408076937,2.7e-07,82149.0,82148.0,1.72968729]
[1743408078237,2.7e-07,82149.0,82148.0,1.74422814]
[1743408085895,2.7e-07,82149.0,82148.0,1.74432814]
[1743408089962,2.7e-07,82149.0,82148.0,1.74932814]
[1743408090229,2.7e-07,82149.0,82148.0,1.79732814]
[1743408094044,2.7e-07,82149.0,82148.0,1.78532814]
[1743408094251,2.7e-07,82149.0,82148.0,1.79132814]
[1743408094457,2.7e-07,82149.0,82148.0,1.79732814]
[1743408094861,2.7e-07,82149.0,82148.0,1.79132814]
[1743408095060,2.7e-07,82149.0,82148.0,1.87732814]
[1743408097049,2.7e-07,82149.0,82148.0,2.29662814]
[1743408097250,4.2e-07,82167.0,82166.0,0.255579]
[1743408097463,0.00014145,82167.0,82166.0,0.52522383]
[1743408098074,4.5e-07,82167.0,82166.0,0.84476468]
[1743408098492,4.5e-07,82167.0,82166.0,1.48284468]
[1743408099039,4.5e-07,82167.0,82166.0,1.47684468]
[1743408099439,4.5e-07,82167.0,82166.0,1.48284468]
[1743408100067,4.5e-07,82167.0,82166.0,1.48884468]
[1743408100501,4.5e-07,82167.0,82166.0,2.14184468]
[1743408100875,4.5e-07,82167.0,82166.0,2.14784468]
[1743408101693,4.5e-07,82167.0,82166.0,2.13584468]
[1743408101874,4.5e-07,82167.0,82166.0,2.14184468]
[1743408102091,4.5e-07,82167.0,82166.0,2.14784468]
[1743408102514,4.5e-07,82167.0,82166.0,2.14184468]
[1743408103819,4.5e-07,82167.0,82166.0,2.13584468]
[1743408104018,4.5e-07,82167.0,82166.0,2.14784468]
[1743408104203,4.5e-07,82167.0,82166.0,1.99848468]
[1743408104542,4.5e-07,82167.0,82166.0,2.14928468]
[1743408106489,4.5e-07,82167.0,82166.0,2.14916468]
[1743408107104,4.5e-07,82167.0,82166.0,2.14912468]
[1743408111060,4.5e-07,82167.0,82166.0,2.17412468]
[1743408111391,1.4e-07,82182.0,82179.0,0.305]
[1743408111570,1.4e-07,82182.0,82181.0,0.69035868]
[1743408111753,1.4e-07,82182.0,82181.0,0.84119868]
[1743408113404,1.4e-07,82182.0,82181.0,0.84619868]
[1743408113615,1.4e-07,82182.0,82181.0,0.85219868]
[1743408113868,1.4e-07,82182.0,82181.0,0.86151846]
[1743408114082,1.4e-07,82182.0,82181.0,1.49343846]
[1743408114288,1.4e-07,82182.0,82181.0,1.49943846]
[1743408115205,1.4e-07,82194.0,82193.0,0.255495]
[1743408115427,1.2e-07,82194.0,82193.0,0.39032068]
[1743408115632,6.1e-07,82211.0,82208.0,0.012164]
[1743408115832,0.002,82224.0,82219.0,0.255414]
[1743408115833,0.0805,82220.0,82219.0,0.255414]
[1743408115963,0.0805,82220.0,82219.0,1.00761883]
[1743408116605,0.0805,82220.0,82219.0,1.01988072]
[1743408117847,0.0805,82220.0,82219.0,1.04090791]
[1743408118063,0.0805,82220.0,82219.0,1.17920602]
[1743408118218,0.0805,82220.0,82219.0,1.02864602]
[1743408118576,0.0805,82220.0,82219.0,1.17920602]
[1743408118787,0.1255,82220.0,82219.0,1.17920602]
[1743408119289,0.1255,82220.0,82219.0,0.92371202]
[1743408119485,0.1255,82220.0,82219.0,1.16696402]
[1743408119655,0.1255,82220.0,82219.0,0.92371202]
[1743408119994,0.1255,82220.0,82219.0,1.16696402]
[1743408120168,0.1255,82220.0,82219.0,1.17912602]
[1743408120367,0.1255,82220.0,82219.0,0.80342719]
[1743408120795,0.680911,82220.0,82219.0,0.79416]
[1743408121666,0.680911,82220.0,82219.0,0.78816]
[1743408121818,0.668749,82220.0,82219.0,0.78816]
[1743408122017,0.668749,82220.0,82219.0,0.79216]
[1743408122227,0.680911,82220.0,82219.0,0.79216]
[1743408122431,0.680911,82220.0,82219.0,0.78816]
[1743408122633,0.680911,82220.0,82219.0,0.78616]
[1743408123064,0.680911,82220.0,82219.0,0.79116]
[1743408123482,0.680911,82220.0,82219.0,0.78616]
[1743408123914,0.680911,82220.0,82219.0,0.79016]
[1743408130231,0.680911,82220.0,82219.0,0.63992]
[1743408130546,0.69996146,82220.0,82219.0,0.63592]
[1743408130683,0.69996146,82220.0,82219.0,0.004]
[1743408130915,0.71450231,82220.0,82219.0,0.004]
[1743408131156,0.75237415,82220.0,82219.0,0.007]
[1743408131357,0.75237415,82220.0,82219.0,0.004]
[1743408132271,0.255468,82202.0,82201.0,0.15028]
[1743408132619,0.332468,82202.0,82201.0,0.15028]
[1743408133048,0.35152072,82202.0,82201.0,0.15028]
[1743408133652,0.35152072,82202.0,82201.0,0.15528]
[1743408134035,0.35152072,82202.0,82201.0,0.15928]
[1743408135191,0.33935572,82202.0,82201.0,0.15928]
[1743408135726,0.35152072,82202.0,82201.0,0.15928]
[1743408137232,0.01905272,82202.0,82201.0,0.53503583]
[1743408137397,0.312163,82211.0,82202.0,0.012165]
[1743408137600,0.2433,82203.0,82202.0,0.12028483]
[1743408138238,0.255459,82205.0,82201.0,0.15428]
[1743408138451,0.012165,82203.0,82201.0,0.15028]
[1743408138601,0.255466,82203.0,82202.0,0.002]
[1743408138808,0.255466,82203.0,82202.0,0.006]
[1743408139127,0.255468,82202.0,82201.0,0.15028]
[1743408139288,0.255468,82202.0,82201.0,0.15328]
[1743408139497,0.255468,82202.0,82201.0,0.15028]
[1743408139689,0.336068,82202.0,82201.0,0.15028]
[1743408140425,0.35512046,82202.0,82201.0,0.15028]
[1743408140629,0.35512046,82202.0,82195.0,0.6318]
[1743408140630,0.636086,82196.0,82195.0,0.6318]
[1743408141179,0.243354,82185.0,82179.0,0.243368]
[1743408141383,0.243354,82185.0,82175.0,0.255549]
[1743408141384,0.636123,82184.0,82175.0,0.63188]
[1743408141590,0.636123,82184.0,82175.0,0.78244]
[1743408141810,0.3806,82184.0,82177.0,0.012168]
[1743408142026,0.65518015,82184.0,82183.0,0.00024098]
[1743408142198,0.65518015,82184.0,82183.0,0.15092098]
[1743408142757,0.65518015,82184.0,82183.0,0.15492098]
[1743408142982,0.65518015,82184.0,82183.0,0.15992098]
[1743408143192,0.65518015,82184.0,82183.0,0.00924098]
[1743408143442,0.64301315,82184.0,82183.0,0.15976098]
[1743408143616,0.31905715,82184.0,82183.0,0.41528698]
[1743408143794,0.01905715,82184.0,82183.0,0.53557181]
[1743408144822,0.0806,82201.0,82198.0,0.243314]
[1743408145120,0.012164,82206.0,82198.0,0.243314]
[1743408145121,0.323885,82209.0,82199.0,0.162725]
[1743408145297,0.0806,82209.0,82203.0,0.2433]
[1743408145509,0.0806,82209.0,82204.0,0.243296]
[1743408145510,0.3,82208.0,82204.0,0.243296]
[1743408145729,0.01905192,82207.0,82206.0,0.24329]
[1743408146091,0.01905192,82207.0,82206.0,0.255454]
[1743408146298,0.01905192,82207.0,82206.0,0.37573883]
[1743408146860,0.002,82224.0,82223.0,0.255402]
[1743408146861,0.01429065,82224.0,82223.0,0.255402]
[1743408147092,0.002,82224.0,82223.0,0.406162]
[1743408147276,0.002,82224.0,82223.0,0.52644683]
[1743408148215,0.00246983,82224.0,82223.0,0.52644683]
[1743408148780,0.00246983,82224.0,82223.0,0.53244683]
[1743408149180,0.00246983,82224.0,82223.0,0.53308683]
[1743408149416,0.00246983,82224.0,82223.0,0.53908683]
[1743408149784,0.00246983,82224.0,82223.0,0.38168683]
[1743408149984,0.00246983,82224.0,82223.0,0.53312683]
[1743408150390,0.00246983,82224.0,82223.0,0.38168683]
[1743408150591,0.00246983,82224.0,82223.0,0.53320683]
[1743408150794,0.00246983,82224.0,82223.0,0.53316683]
[1743408151389,0.00246983,82224.0,82223.0,0.53916683]
[1743408151597,0.00246983,82224.0,82223.0,0.53316683]
[1743408151793,0.00246983,82224.0,82223.0,0.006]
[1743408152200,0.00246983,82224.0,82223.0,0.176122]
[1743408152395,0.03367724,82224.0,82223.0,0.012]
[1743408152607,0.03367724,82224.0,82223.0,0.79572]
[1743408152785,0.03367724,82224.0,82223.0,0.78972]
[1743408152997,0.02151624,82224.0,82223.0,0.6438]
[1743408153272,0.02151624,82224.0,82223.0,0.802362]
[1743408154425,0.02151624,82224.0,82223.0,0.92264683]
[1743408155121,0.02151624,82224.0,82223.0,0.92664683]
[1743408155381,0.02151624,82224.0,82223.0,0.92064683]
[1743408155584,0.27691424,82224.0,82223.0,0.6318]
[1743408155788,0.02151624,82224.0,82223.0,0.79632]
[1743408156152,0.27691424,82224.0,82223.0,0.79632]